[Event "Austrian Championship 2022"]
[Site "Vienna"]
[Date "2022.08.14"]
[Round "3.21"]
[White "Tumanyan, Gor"]
[Black "Steindl, Johannes"]
[Result "0-1"]
[ECO "C55"]
[WhiteElo "1884"]
[BlackElo "2312"]
[Annotator "TA"]
[PlyCount "58"]
[EventDate "2022.08.12"]
[EventType "swiss"]
[EventCountry "AUT"]
[SourceTitle "playchess.com"]
[Source "ChessBase"]
[SourceQuality "1"]
[TimeControl "40/5400+30:1800+30"]

{[%evp 9,58,-63,-61,-55,-61,-67,-20,-95,-78,-94,-88,-121,-106,-327,-168,-145,-147,-167,-154,-792,-782,-739,-771,-734,-596,-595,-552,-567,-560,-549,-543,-557,-465,-487,-498,-479,-495,-648,-619,-679,-668,-884,-671,-29979,-29980,-29995,-29996,-29996,-29997,-29998,-29998]} 1. e4 {[%emt 0:00:02]} e5 {[%emt 0:00:09]} 2. Nf3 {[%emt 0:00:05]} Nc6 {[%emt 0:00:08]} 3. Bc4 {[%emt 0:00:04]} Nf6 {[%emt 0:00:05]} 4. O-O {[%emt 0:00:18]} Nxe4 {[%emt 0:01:01]} 5. d4 {[%emt 0:00:09]} d5 {[%emt 0:00:53]} 6. Bb5 {[%emt 0:00:06] C55: Two Knights: 4 d3, 4 d4 exd4 5 e5 and Max Lange Attack.} exd4 {[%emt 0:05:20]} 7. Qxd4 {[%emt 0:00:18]} Be6 {[%emt 0:01:19] [#]} (7... Qd7 $15 {was preferrable.}) 8. Ne5 $146 {[%emt 0:29:37]} (8. Nc3 $11) ({Predecessor:} 8. Nc3 Qd7 9. Bxc6 Qxc6 10. Ne5 Qc5 11. Qa4+ c6 12. Be3 Nxc3 13. bxc3 Qd6 14. Bf4 {0-1 (41) Baloun,T (1887)-Steiner,B (2179) Ceske Budejovice 2019}) 8... Bc5 $17 {[%emt 0:01:01]} 9. Qa4 {[%emt 0:02:06]} O-O {[%emt 0:00:08]} 10. Nxc6 {[%emt 0:02:17]} bxc6 {[%emt 0:00:05]} 11. Bxc6 {[%emt 0:05:36]} (11. Bd3 $17 {only move.}) 11... Qh4 {[%emt 0:03:05]} 12. Be3 $19 {[%emt 0:14:11]} Bxe3 {[%emt 0:00:21] Black is more active.} ({Inferior is} 12... Bd6 13. g3 Qh5 14. Nc3 $11) 13. fxe3 {[%emt 0:00:07] [#]} Qg5 $1 $40 {[%emt 0:00:04][%mdl 128] White is in trouble.} 14. Rf3 {[%emt 0:07:07] [#] This costs White the game.} (14. Kh1 $17 Rab8 15. Nc3) 14... Bg4 $1 {[%emt 0:00:41]} 15. Kf1 {[%emt 0:00:58]} Bxf3 {[%emt 0:01:02]} 16. gxf3 {[%emt 0:00:39]} Qf6 {[%emt 0:00:14]} 17. Ke2 {[%emt 0:06:19]} Qxb2 {[%emt 0:01:29]} 18. Bxa8 {[%emt 0:09:39]} Qxa1 {[%emt 0:01:56]} 19. fxe4 {[%emt 0:06:27]} Rxa8 {[%emt 0:00:11][%mdl 4096] Endgame KQR-KQN} 20. Qc6 {[%emt 0:00:21][%cal Rc6a8]} Rb8 {[%emt 0:01:35]} 21. Nc3 {[%emt 0:00:27]} dxe4 {[%emt 0:00:39]} ({But not} 21... Qg1 $2 22. Qxc7 Re8 23. Kd2 $19) 22. Qxc7 {[%emt 0:01:29][%cal Rc7b8]} Rf8 {[%emt 0:01:14]} ({Don't blunder} 22... Re8 $2 23. Nxe4 Qxa2 24. Nd6 $19) 23. Nxe4 {[%emt 0:09:22]} Qxa2 {[%emt 0:00:15] And now ...a5 would win.} 24. Kf3 {[%emt 0:00:57]} Qd5 {[%emt 0:00:37] ( -> ...f5)} 25. Kf4 {[%emt 0:00:52]} h6 {[%emt 0:00:22] Hoping for ...g5+.} 26. h4 {[%emt 0:01:29] Inhibits g5+.} Re8 {[%emt 0:00:25] Black mates.} 27. Nd6 {[%emt 0:01:31]} g5+ {[%emt 0:00:30]} 28. Kg4 {[%emt 0:00:26]} Qd1+ {[%emt 0:00:17]} 29. Kg3 {[%emt 0:01:02]} Rxe3+ {[%emt 0:00:06] Weighted Error Value: White=0.91/Black=0.26 (precise)} 0-1

[Event "Austrian Championship 2022"]
[Site "Vienna"]
[Date "2022.08.14"]
[Round "3.22"]
[White "Steiner, Adam"]
[Black "Oberhuber, Alexander"]
[Result "1/2-1/2"]
[ECO "B27"]
[WhiteElo "2226"]
[BlackElo "2062"]
[Annotator "TA"]
[PlyCount "61"]
[EventDate "2022.08.12"]
[EventType "swiss"]
[EventCountry "AUT"]
[SourceTitle "playchess.com"]
[Source "ChessBase"]
[SourceQuality "1"]
[TimeControl "40/5400+30:1800+30"]

{[%evp 9,61,0,0,0,0,0,0,0,0,0,0,0,17,1,26,-67,0,-76,0,-104,-99,-138,-114,-192,-202,-187,-192,-175,-183,-171,-136,-139,-131,-153,-145,-149,-21,-24,-14,-15,0,0,0,0,0,0,0,0,0,0,0,-8,-6,-37]} 1. e4 {[%emt 0:00:04]} c5 {[%emt 0:00:06]} 2. Nf3 {[%emt 0:00:10]} g6 {[%emt 0:00:08]} 3. Bc4 {[%emt 0:00:34]} Bg7 {[%emt 0:01:01]} 4. c3 {[%emt 0:00:26]} e6 {[%emt 0:05:33]} 5. d4 {[%emt 0:00:12]} cxd4 {[%emt 0:00:08]} 6. Bb3 {[%emt 0:00:05] [#] B27: Sicilian: 2 Nf3, unusual Black 2nd moves.} dxc3 $146 {[%emt 0:12:51]} ({Predecessor:} 6... Nc6 7. cxd4 d5 8. e5 Nge7 9. Nc3 Bd7 10. O-O a6 11. Re1 h6 12. h4 Na5 13. Bc2 {1-0 (60) Xie,G (2402)-Smith,R (2274) Gold Coast 2009}) 7. Nxc3 {[%emt 0:01:00]} Ne7 {[%emt 0:00:19]} 8. Bf4 {[%emt 0:02:04]} O-O {[%emt 0:11:01][%cal Od7d5]} 9. Bd6 {[%emt 0:02:41]} Nbc6 {[%emt 0:01:14]} 10. h4 {[%emt 0:02:25]} b5 {[%emt 0:06:46]} 11. h5 {[%emt 0:20:46][%mdl 1024] White has compensation.} b4 {[%emt 0:06:14]} 12. Ne2 {[%emt 0:16:30]} (12. Na4 $1 $11) 12... Ba6 {[%emt 0:05:17]} (12... Bxb2 $15 13. Rc1 Ba6) 13. Rc1 {[%emt 0:08:24]} (13. hxg6 $11 fxg6 14. Qd2) 13... Rc8 {[%emt 0:05:47]} (13... Bxb2 $17 14. hxg6 fxg6) 14. Rc5 {[%emt 0:02:48]} (14. Qd2 $11) 14... Qb6 {[%emt 0:04:16][%cal Oc6d4]} 15. e5 {[%emt 0:09:33]} Nf5 {[%emt 0:11:16]} 16. hxg6 {[%emt 0:12:51]} (16. Bxf8 $17 {was called for.} Rxf8 17. Qc1) 16... Nxd6 $19 {[%emt 0:02:16]} 17. gxh7+ {[%emt 0:11:08]} Kh8 {[%emt 0:00:10]} 18. Qxd6 {[%emt 0:00:01] [#] Strongly threatening Nf4.} Nxe5 $1 {[%emt 0:05:04][%mdl 512]} 19. Qxb6 {[%emt 0:00:15]} Nxf3+ {[%emt 0:01:42]} 20. gxf3 {[%emt 0:00:02]} axb6 {[%emt 0:00:13]} 21. Rg5 {[%emt 0:01:57]} Rc5 {[%emt 0:00:24]} 22. Rg4 {[%emt 0:02:12]} Bd3 {[%emt 0:03:45] A strong pair of Bishops.} (22... Bxb2 $17 {And now ...f5 would win.} 23. Kd2 Rfc8) 23. Rhg1 $11 {[%emt 0:01:54]} Bg6 {[%emt 0:01:52]} 24. Nf4 $1 {[%emt 0:00:31] The position is equal.} Bh6 {[%emt 0:05:49]} (24... Bxb2 $2 25. Rxg6 Rc1+ 26. Bd1 (26. Kd2 fxg6 27. Nxg6+ Kg7 $11) 26... fxg6 27. Nxg6+ Kg7 28. Nxf8+ Kxf8 29. Rg8+ Ke7 30. h8=Q $18) 25. Rxg6 {[%emt 0:02:22]} fxg6 {[%emt 0:00:26]} 26. Nxg6+ {[%emt 0:00:01]} Kxh7 {[%emt 0:00:23]} 27. Nxf8+ {[%emt 0:00:01]} Bxf8 {[%emt 0:00:19] KRB-KRB} 28. Rg4 {[%emt 0:01:51]} Kh6 {[%emt 0:03:12]} 29. Kd2 {[%emt 0:00:12]} Rg5 {[%emt 0:01:46]} 30. Kd3 {[%emt 0:01:39]} Bc5 {[%emt 0:00:33]} 31. Rxg5 {[%emt 0:00:46] Black had all chances to win.  Weighted Error Value: White=0.28 (precise) /Black=0.22 (precise)} 1/2-1/2

[Event "Austrian Championship 2022"]
[Site "Vienna"]
[Date "2022.08.14"]
[Round "3.23"]
[White "Sucher, Johannes"]
[Black "Ivanyk, Igor"]
[Result "1/2-1/2"]
[ECO "A45"]
[WhiteElo "2164"]
[BlackElo "2002"]
[Annotator "TA"]
[PlyCount "45"]
[EventDate "2022.08.12"]
[EventType "swiss"]
[EventCountry "AUT"]
[SourceTitle "playchess.com"]
[Source "ChessBase"]
[SourceQuality "1"]
[TimeControl "40/5400+30:1800+30"]

{[%evp 9,45,-29,-22,-21,-17,-26,-37,-35,-38,-36,-31,-37,0,-44,-30,-31,-27,-37,-30,-28,-18,-33,-6,-51,-17,-17,-18,-18,-8,-17,0,-9,0,-10,-2,-32,-8,-16]} 1. d4 {[%emt 0:00:04]} Nf6 {[%emt 0:01:44]} 2. Bg5 {[%emt 0:00:15]} c5 {[%emt 0:00:49]} 3. dxc5 {[%emt 0:02:21]} e6 {[%emt 0:00:47]} 4. Nc3 {[%emt 0:02:20]} Bxc5 {[%emt 0:02:48]} 5. e3 {[%emt 0:00:43]} d5 {[%emt 0:02:49]} 6. Nf3 {[%emt 0:01:11] A45: Trompowsky Attack.} Nc6 {[%emt 0:03:24]} 7. Be2 {[%emt 0:03:36]} a6 {[%emt 0:03:56]} 8. O-O {[%emt 0:05:10][%cal Oe3e4] Black is slightly better.} O-O {[%emt 0:01:58] [#]} 9. Qc1 $146 {[%emt 0:21:01]} ({Predecessor:} 9. a3 h6 10. Bh4 b5 11. Qd3 Bb7 12. Rad1 Be7 13. h3 Rc8 14. Rfe1 Qb6 15. Bg3 {0-1 (49) Klek,H (2311)-Ott,F (2267) Bayern 2013}) 9... Be7 {[%emt 0:14:51]} 10. Rd1 {[%emt 0:01:35][%cal Oe3e4]} Qc7 {[%emt 0:01:24]} 11. Nd4 {[%emt 0:08:53]} (11. Bf4 $5 {[%cal Rf4c7]} Qa5 12. Nd4 $11) 11... Bd7 {[%emt 0:09:47]} 12. Bf4 {[%emt 0:05:50]} Bd6 {[%emt 0:12:12] [#] Threatens to win with ...Nxd4.} 13. Nxc6 {[%emt 0:12:46]} Bxc6 {[%emt 0:01:41]} 14. Bxd6 {[%emt 0:00:06]} Qxd6 {[%emt 0:00:03]} 15. Bf3 {[%emt 0:00:42]} Rac8 {[%emt 0:06:54]} 16. Qd2 {[%emt 0:03:57][%cal Oe3e4]} (16. Ne4 $5 Nxe4 17. Bxe4 $11) 16... Qb4 {[%emt 0:02:14]} 17. Qd4 {[%emt 0:03:28]} Qxd4 {[%emt 0:02:20]} ({Much less strong is} 17... Qxb2 {[#]} 18. Nxd5 $1 Qxd4 19. Ne7+ Kh8 20. Rxd4 $14) 18. exd4 {[%emt 0:01:23]} Rc7 {[%emt 0:02:37]} 19. Be2 {[%emt 0:01:28]} Rfc8 {[%emt 0:00:59]} 20. Bd3 {[%emt 0:00:20]} Ne8 {[%emt 0:02:06][%cal Bf6e8,Be8d6,Bd6e4][%mdl 32]} 21. Re1 {[%emt 0:00:37]} Nd6 {[%emt 0:00:22]} 22. f4 {[%emt 0:00:43]} Ne4 {[%emt 0:02:54]} 23. Nd1 {[%emt 0:08:58] Weighted Error Value: White=0.10 (very precise) /Black=0.11 (very precise)} 1/2-1/2

[Event "Austrian Championship 2022"]
[Site "Vienna"]
[Date "2022.08.14"]
[Round "3.24"]
[White "Kienboeck, Benjamin"]
[Black "Kordzadze, Nino"]
[Result "1-0"]
[ECO "C11"]
[WhiteElo "2151"]
[BlackElo "2043"]
[Annotator "TA"]
[PlyCount "79"]
[EventDate "2022.08.12"]
[EventType "swiss"]
[EventCountry "AUT"]
[SourceTitle "playchess.com"]
[Source "ChessBase"]
[SourceQuality "1"]
[TimeControl "40/5400+30:1800+30"]

{[%evp 9,79,0,31,29,31,38,33,28,32,23,28,12,27,11,12,-21,12,-18,12,-21,19,19,16,12,19,19,24,15,15,16,47,35,165,31,35,16,40,33,110,114,146,122,206,195,262,175,176,138,147,111,100,75,97,72,173,194,186,194,185,177,254,223,290,304,1626,1575,29992,29992,29992,29993,29996,919]} 1. e4 {[%emt 0:00:04]} e6 {[%emt 0:00:05]} 2. d4 {[%emt 0:00:10]} d5 {[%emt 0:00:06]} 3. Nc3 {[%emt 0:00:09]} Nf6 {[%emt 0:00:09]} 4. e5 {[%emt 0:00:33]} Nfd7 {[%emt 0:00:06]} 5. f4 {[%emt 0:00:20]} g6 {[%emt 0:02:57]} 6. Nf3 {[%emt 0:03:47] C11: French: Classical System: 4 e5 and 4 Bg5 dxe4.} c5 {[%emt 0:00:12]} 7. Be3 {[%emt 0:01:19]} a6 {[%emt 0:06:21]} 8. dxc5 {[%emt 0:12:38] White is slightly better.} Nxc5 {[%emt 0:06:27] [#]} 9. Nd4 $146 {[%emt 0:08:17]} ({Predecessor:} 9. Be2 b5 10. a3 Bb7 11. O-O Nbd7 12. Qe1 Bg7 13. Rd1 O-O 14. Qd2 Qc7 15. b4 {1-0 (33) Kinez,I (2125)-Lescan,M (1968) Velika Gorica 2008}) 9... b5 {[%emt 0:05:46]} 10. a3 {[%emt 0:01:59]} Bb7 {[%emt 0:03:00]} 11. g3 {[%emt 0:01:20]} Nc6 {[%emt 0:03:38]} 12. Nce2 {[%emt 0:02:53]} Rc8 {[%emt 0:03:41]} 13. Bg2 {[%emt 0:01:40]} h5 {[%emt 0:15:21]} 14. O-O {[%emt 0:02:43]} Qe7 {[%emt 0:02:43]} 15. Nxc6 {[%emt 0:05:49]} Bxc6 {[%emt 0:07:14]} 16. Nd4 {[%emt 0:00:28]} Bb7 {[%emt 0:00:52]} 17. Qe2 {[%emt 0:05:21]} Na4 {[%emt 0:04:08]} 18. c3 {[%emt 0:03:52]} Qd7 {[%emt 0:05:38]} 19. Bf3 {[%emt 0:04:37]} Bg7 {[%emt 0:04:25]} 20. Rae1 {[%emt 0:00:58]} Qc7 {[%emt 0:09:22]} (20... Nc5 $14) 21. h3 {[%emt 0:05:45]} (21. f5 $1 $18 {[%cal Rf5g6] Black must now prevent fxg6.} exf5 22. e6) 21... Nc5 $14 {[%emt 0:02:21]} 22. Qg2 {[%emt 0:11:32]} Ne4 {[%emt 0:08:27]} 23. Ra1 {[%emt 0:02:50]} Kd7 {[%emt 0:03:16]} (23... Nc5 $14) 24. a4 $36 {[%emt 0:02:16][%mdl 2048] White has strong initiative.} bxa4 {[%emt 0:00:13]} 25. Rxa4 {[%emt 0:01:24]} Nc5 {[%emt 0:00:07]} (25... Bf8 $16) 26. Raa1 $18 {[%emt 0:01:52]} f6 {[%emt 0:01:21]} (26... Bf8 $142 27. Rfd1 Ke8) 27. exf6 {[%emt 0:01:36]} Bxf6 {[%emt 0:00:05]} 28. Rad1 {[%emt 0:00:31][%cal Oc3c4] c4! is the strong threat.} Ke7 {[%emt 0:01:52]} 29. Rfe1 {[%emt 0:00:53][%cal Of4f5] White is more active.} Kf7 {[%emt 0:00:12]} 30. Nc2 {[%emt 0:01:53]} Rcd8 {[%emt 0:01:07]} 31. Bd4 {[%emt 0:00:30]} Nb3 {[%emt 0:00:41] [#]} (31... Bxd4+ $16 {was called for.} 32. Nxd4 Ne4) 32. Bxf6 $1 {[%emt 0:01:37]} ({Don't do} 32. Qe2 $6 Nxd4 33. Nxd4 Rhe8 $14) 32... Kxf6 {[%emt 0:00:05]} 33. Re5 {[%emt 0:01:49]} ({Don't take} 33. Qe2 $6 Nc5 $16) 33... Rd6 {[%emt 0:02:27]} 34. Rde1 {[%emt 0:02:14]} a5 {[%emt 0:00:23]} (34... Rf8 $142 35. g4 hxg4 36. Qxg4 Qb6+ 37. Kg2 d4) 35. Kh2 {[%emt 0:01:55]} Rh7 {[%emt 0:00:36]} 36. Qe2 {[%emt 0:02:04][%cal Re5e6]} Ba6 $2 {[%emt 0:00:23]} (36... Bc8 37. Ne3 (37. Nd4 Nxd4 38. cxd4 Rb6 $16) 37... Nc5) 37. Rxe6+ {[%emt 0:09:22]} Kf7 {[%emt 0:01:27]} 38. Re7+ {[%emt 0:00:00] White mates.} Kf8 {[%emt 0:01:30]} 39. Re8+ {[%emt 0:00:00]} Kf7 {[%emt 0:00:36] [#]} 40. Qe7+ {[%emt 0:00:00] Weighted Error Value: White=0.17 (very precise) /Black=0.44} (40. Bxd5+ $142 $1 {[%mdl 512]} Kg7 (40... Rxd5 41. Qe6+) 41. Qe5+ Rf6 42. Rg8+ Kh6 43. Qg5#) 1-0

[Event "Austrian Championship 2022"]
[Site "Vienna"]
[Date "2022.08.15"]
[Round "4.1"]
[White "Miazhynski, Yuri"]
[Black "Stadlinger, Matthias"]
[Result "1-0"]
[ECO "C41"]
[WhiteElo "2166"]
[BlackElo "1975"]
[Annotator "TA"]
[PlyCount "89"]
[EventDate "2022.08.12"]
[EventType "swiss"]
[EventCountry "AUT"]
[SourceTitle "playchess.com"]
[Source "ChessBase"]
[SourceQuality "1"]
[TimeControl "40/5400+30:1800+30"]

{[%evp 13,89,33,38,47,52,38,60,34,90,54,78,26,29,35,32,-9,48,-29,-28,-25,-8,-28,-4,-98,-113,-160,-163,-300,-295,-299,-163,-168,-141,-154,-124,-167,-85,-97,-86,-92,-91,-74,-107,-116,-18,-135,-68,-56,-19,-22,-49,-106,0,0,0,0,0,-663,1887,1879,29980,29979,29981,29981,29977,806,825,622,678,648,2629,2789,2302,2773,29962,29963,29986,29987]} 1. e4 {[%emt 0:00:03]} d6 {[%emt 0:00:05]} 2. d4 {[%emt 0:00:32]} Nf6 {[%emt 0:00:05]} 3. Nc3 {[%emt 0:00:13]} Nbd7 {[%emt 0:00:04]} 4. Nf3 {[%emt 0:00:20]} e5 {[%emt 0:00:06]} 5. Bc4 {[%emt 0:00:15]} Be7 {[%emt 0:00:09]} 6. a4 {[%emt 0:00:35]} c6 {[%emt 0:00:11]} 7. O-O {[%emt 0:02:30]} Qc7 {[%emt 0:02:41] 7...h6 is a critical line.} 8. h3 {[%emt 0:04:12] C41: Philidor Defence.} h6 {[%emt 0:00:45]} 9. a5 {[%emt 0:03:39]} (9. Nh4 {looks sharper.} O-O 10. Ng6 Re8 11. Nxe7+ Rxe7 12. a5) 9... Nf8 {[%emt 0:05:33][%cal Bd7f8,Bf8g6,Bg6f4][%mdl 32]} 10. Re1 {[%emt 0:13:41] White is slightly better.} g5 {[%emt 0:00:54]} (10... Ng6 $14) 11. Nh2 {[%emt 0:03:45] White is more active.} Ng6 {[%emt 0:03:18]} 12. Nf1 {[%emt 0:06:32]} (12. d5 $16) 12... g4 $11 {[%emt 0:09:47]} 13. hxg4 {[%emt 0:01:52]} Bxg4 {[%emt 0:00:07]} 14. f3 {[%emt 0:00:30]} Bd7 {[%emt 0:00:56] [#]} (14... Bc8 $11) 15. Ne3 $146 {[%emt 0:03:50]} (15. d5 $1 $14) ({Predecessor:} 15. a6 b6 16. Ne3 Rg8 17. b3 Nh4 18. Ba3 exd4 19. Ned5 Nxd5 20. exd5 dxc3 21. Rxe7+ Kxe7 {1-0 (52) Schlegel,I (2020)-Mohr,B (1749) Tornelo INT 2020}) 15... Rg8 $1 {[%emt 0:03:34]} 16. d5 {[%emt 0:15:31]} Nf4 {[%emt 0:06:38]} 17. Bf1 {[%emt 0:01:56]} N6h5 {[%emt 1:04:07][%cal Bf6h5,Bh5f4,Bf4h3][%mdl 32]} 18. Ne2 {[%emt 0:11:53]} (18. a6 $1 $11) 18... Bh4 $17 {[%emt 0:00:00]} 19. Nxf4 {[%emt 0:01:35]} ({White should try} 19. dxc6 Qxc6 20. Ra3) 19... Nxf4 {[%emt 0:00:00]} 20. Nf5 {[%emt 0:04:16]} (20. Re2 $142) 20... Nh3+ $1 $19 {[%emt 0:00:00]} (20... Bxe1 21. Qxe1 Bxf5 22. Bxf4 $17) 21. Kh2 {[%emt 0:00:17]} Bxf5 {[%emt 0:00:00]} ({Worse is} 21... Bxe1 22. Qxe1 Bxf5 23. exf5 $15) (21... Nf2 $142 22. dxc6 Bxf5 23. cxb7 Rb8 $1) 22. gxh3 {[%emt 0:01:19]} Bxe1 {[%emt 0:00:00]} 23. Qxe1 {[%emt 0:00:46]} Bg6 {[%emt 0:00:00]} 24. c4 {[%emt 0:03:51]} O-O-O {[%emt 0:00:00]} (24... f5 $19 {Strongly threatening ...fxe4.} 25. a6 b6) 25. Be3 $17 {[%emt 0:03:32]} c5 $1 {[%emt 0:00:00] White must now prevent ...f5.} 26. b4 {[%emt 0:00:08]} f5 $1 {[%emt 0:00:00]} 27. bxc5 {[%emt 0:02:41]} dxc5 {[%emt 0:00:00]} (27... fxe4 28. a6 dxc5 29. axb7+ Kxb7 30. Ra5 $11) 28. Qf2 {[%emt 0:00:32]} b6 {[%emt 0:00:00]} ({Black should play} 28... fxe4 $17 {...Rdf8 is the strong threat.} 29. Bxc5 exf3) 29. Qc2 {[%emt 0:07:40]} (29. f4 $11) 29... fxe4 {[%emt 0:00:00]} ({Reject} 29... bxa5 $6 30. Qc3 (30. exf5 e4+ 31. f4 Bxf5 $11) 30... Bh5 31. Rxa5 $11) (29... Bh5 $1 $17 {[%cal Rh5f3]} 30. Ra3 bxa5) 30. fxe4 {[%emt 0:00:02]} Rd6 {[%emt 0:00:00][%cal Bd8d6,Bd6b6,Bb6b2][%mdl 32]} 31. axb6 {[%emt 0:03:09]} Rxb6 {[%emt 0:00:00]} 32. Ra5 {[%emt 0:00:13]} ({Better is} 32. Ra2 $15) 32... Bxe4 {[%emt 0:04:34]} 33. Qxe4 $11 {[%emt 0:01:29]} Rb2+ {[%emt 0:00:04][%mdl 64] Discovered Attack} 34. Kh1 {[%emt 0:00:06] The board is on fire.} Qxa5 {[%emt 0:00:16]} 35. Qxe5 $2 {[%emt 0:00:07][%mdl 8192]} (35. Qf5+ $11 Kb7 36. Qh7+ Ka6 37. Qxg8) 35... Qa1 $4 {[%emt 0:01:37][%mdl 8192]} (35... Qb6 $19 36. Bxc5 Qxc5 $1 37. Qe6+ Kb7 38. Qxg8 Qf2 39. Qh7+ Ka8 40. Qg8+ Kb7 41. Qg7+ Ka6 42. Qg6+ Ka5) 36. Qe6+ $18 {[%emt 0:00:25]} Kb8 {[%emt 0:01:21]} 37. Qxg8+ {[%emt 0:00:24]} Kb7 {[%emt 0:00:03]} 38. Qf7+ {[%emt 0:00:39]} Ka6 {[%emt 0:00:15]} 39. Bxc5 {[%emt 0:00:26]} (39. Qf6+ $142 Ka5 40. Bd2+ Ka4 41. Qa6+ Kb3 42. Qxa1 Rxd2 43. Qb1+ Rb2 44. Qd1+ Rc2 45. Bd3) 39... Rb7 {[%emt 0:00:24]} 40. Qe6+ {[%emt 0:03:52]} Ka5 {[%emt 0:00:10]} 41. Qe2 {[%emt 0:02:03]} Rb2 {[%emt 0:03:40]} 42. Qd3 {[%emt 0:01:39] Intending Bd4 and mate.} Rb1 {[%emt 0:00:30] [#]} 43. Bd4 $1 {[%emt 0:14:11]} Rxf1+ {[%emt 0:01:23] [#]} (43... Qa2 44. d6) 44. Kg2 $1 {[%emt 0:01:13]} Rd1 {[%emt 0:00:04]} 45. Bc3+ {[%emt 0:00:18] Weighted Error Value: White=0.51/Black=0.39} 1-0

[Event "Austrian Championship 2022"]
[Site "Vienna"]
[Date "2022.08.15"]
[Round "4.2"]
[White "Horvath, Dominik"]
[Black "Leisch, Lukas"]
[Result "1/2-1/2"]
[ECO "C15"]
[WhiteElo "2488"]
[BlackElo "2404"]
[Annotator "TA"]
[PlyCount "81"]
[EventDate "2022.08.12"]
[EventType "swiss"]
[EventCountry "AUT"]
[SourceTitle "playchess.com"]
[Source "ChessBase"]
[SourceQuality "1"]
[TimeControl "40/5400+30:1800+30"]

{[%evp 12,81,2,0,0,0,0,31,25,0,0,0,0,7,73,74,64,-16,52,0,0,-7,0,0,0,0,0,0,0,0,0,0,0,-80,0,0,0,0,0,0,52,0,35,0,0,0,36,0,54,34,34,39,50,47,53,53,50,35,28,43,46,52,48,50,34,0,23,0,0,0,0,0]} 1. e4 {[%emt 0:00:12]} e6 {[%emt 0:00:03]} 2. d4 {[%emt 0:00:09]} d5 {[%emt 0:00:08]} 3. Nc3 {[%emt 0:00:02]} Bb4 {[%emt 0:00:12]} 4. Nge2 {[%emt 0:00:03]} dxe4 {[%emt 0:00:25]} 5. a3 {[%emt 0:00:02]} Bxc3+ {[%emt 0:00:12]} 6. Nxc3 {[%emt 0:00:02]} Nc6 {[%emt 0:00:09]} 7. Bf4 {[%emt 0:00:02]} Nf6 {[%emt 0:07:50] C15: French: 3 Nc3 Bb4: Unusual White 4th moves.} 8. Bb5 {[%emt 0:00:06]} O-O {[%emt 0:01:32]} 9. Bxc6 {[%emt 0:00:55]} bxc6 {[%emt 0:00:02] White is slightly better.} 10. Bg5 {[%emt 0:06:04][%cal Bf4g5,Bg5h4,Bh4g3][%mdl 32]} h6 $1 {[%emt 0:02:53] [#]} 11. Bh4 $146 {[%emt 0:00:40]} (11. Bxf6 Qxf6 12. Nxe4 Qg6 $15) ({Predecessor:} 11. Bxf6 Qxf6 12. Nxe4 Qg6 13. Qf3 e5 14. dxe5 Rb8 15. b4 Ba6 16. Nc5 Bc4 17. Qe4 Qxe4+ 18. Nxe4 {½-½ (76) Mitkov,N (2461)-Thavandiran,S (2399) Chess.com INT 2018}) 11... Rb8 {[%emt 0:05:32]} 12. b3 {[%emt 0:00:22]} g5 {[%emt 0:26:58]} (12... c5 $11 {remains equal.}) 13. Bg3 $16 {[%emt 0:00:04]} Nd5 {[%emt 0:00:04]} 14. Na4 {[%emt 0:07:17]} ({White should play} 14. Nxe4 $14 e5 15. dxe5 (15. Bxe5 f6 $17)) 14... Qf6 {[%emt 0:02:05]} (14... f5 $11 15. Be5 Nf4 16. Bxf4 gxf4) 15. h4 {[%emt 0:00:26]} (15. Qd2 $14) 15... Nf4 $36 {[%emt 0:13:39][%mdl 2048] Black is more active.} 16. Bxf4 {[%emt 0:54:01]} gxf4 {[%emt 0:02:38]} (16... Qxf4 17. g3 Qf5 18. hxg5 $11) 17. Qg4+ $1 {[%emt 0:00:25]} Kh7 {[%emt 0:06:18] [#] Threatens to win with ...Rg8.} 18. O-O-O {[%emt 0:00:08]} e5 {[%emt 0:03:21]} 19. Qe2 {[%emt 0:00:03]} Bf5 {[%emt 0:00:38]} 20. Nc5 {[%emt 0:04:15]} exd4 {[%emt 0:04:52]} 21. Nxe4 {[%emt 0:00:07]} Qg7 {[%emt 0:00:13]} 22. Qd3 {[%emt 0:07:12]} (22. Qf3 $11 {keeps the balance.}) 22... Kh8 {[%emt 0:02:06]} (22... Rfe8 $17 23. f3 Rbd8) 23. Qxd4 {[%emt 0:01:43]} Bxe4 {[%emt 0:00:05]} 24. Qxe4 {[%emt 0:00:03] aiming for Kb1.} Qa1+ {[%emt 0:00:16]} 25. Kd2 {[%emt 0:00:02]} Qxa3 {[%emt 0:03:31]} ({Black should try} 25... Qb2 $11 26. Rh3 Rfe8) 26. Kc3 {[%emt 0:01:45]} ({Of course not} 26. Qxc6 Kg8 $11) (26. Qxf4 $14 Qa5+ 27. Ke2 Qh5+ 28. Kd2) 26... Rb5 {[%emt 0:01:54]} 27. Rd4 {[%emt 0:03:02] The board is on fire.} Rc5+ {[%emt 0:05:15]} ({Much less strong is} 27... f3 28. gxf3 Rc5+ 29. Rc4 Rxc4+ 30. Qxc4 $16) ({Don't play} 27... f5 28. Qxf4 Rc5+ 29. Kd3 $18) 28. Rc4 {[%emt 0:01:38] [#] Qd4+ is the strong threat. Active counter play!} Rxc4+ {[%emt 0:00:18]} 29. Qxc4 {[%emt 0:00:03][%mdl 4096] Endgame KQR-KQR} Qd6 {[%emt 0:00:06]} (29... Qa5+ $1 $11 30. Kb2 Qe5+ 31. Qc3 Qxc3+ 32. Kxc3 Rg8) 30. Re1 {[%emt 0:01:46]} Rd8 {[%emt 0:00:38]} 31. Kb2 {[%emt 0:00:03]} Qf6+ {[%emt 0:02:16]} 32. Qc3 $1 {[%emt 0:00:07]} Qxc3+ {[%emt 0:01:59]} 33. Kxc3 $14 {[%emt 0:00:03] KR-KR} Rg8 {[%emt 0:00:04]} 34. Re4 {[%emt 0:01:57]} Rxg2 {[%emt 0:00:15]} 35. Rxf4 {[%emt 0:00:02]} Kg7 {[%emt 0:00:07]} 36. Kb4 {[%emt 0:01:01][%mdl 1024] White has compensation.} Rg6 {[%emt 0:02:21]} 37. Kc5 {[%emt 0:00:16]} a5 {[%emt 0:00:06]} 38. f3 {[%emt 0:06:07]} Kf8 {[%emt 0:00:26]} 39. Rf5 {[%emt 0:00:40]} Ke7 {[%emt 0:00:51]} 40. Rf4 {[%emt 0:03:41]} Rd6 {[%emt 0:02:41]} 41. c3 {[%emt 0:04:54] Weighted Error Value: White=0.17 (very precise) /Black=0.16 (very precise)} 1/2-1/2